bitfinex-derivatives/quotes_ETHF0:USTF0_20250520
["timestamp","ask_amount","ask_price","bid_price","bid_amount"]
[1747704452328,3.2078,2528.6,2528.0,5.6228]
[1747704452532,1.3357,2528.5,2528.3,0.79078]
[1747704452726,1.3357,2528.5,2528.4,0.79076]
[1747704452926,1.57694,2528.8,2528.5,0.79072]
[1747704453127,1.3357,2528.7,2528.6,0.7907]
[1747704454336,1.3357,2528.7,2528.5,2.8354]
[1747704454533,1.3357,2528.7,2528.6,1.29835036]
[1747704454730,1.42056477,2528.7,2528.6,1.29835036]
[1747704454935,1.42056477,2528.7,2528.6,0.50765036]
[1747704455134,4.95123477,2528.7,2528.6,0.50765036]
[1747704455933,4.16056477,2528.7,2528.6,0.50765036]
[1747704456331,4.16056477,2528.7,2528.6,1.29835036]
[1747704456533,4.95123477,2528.7,2528.6,0.50765036]
[1747704460541,4.95123477,2528.7,2528.4,0.47796561]
[1747704460542,0.79073,2528.5,2528.4,0.47796561]
[1747704460732,12.59953,2528.5,2528.4,0.47796561]
[1747704460947,0.79085,2528.2,2528.0,1.26885561]
[1747704461146,4.4935,2528.1,2528.0,1.26885561]
[1747704462059,4.4935,2528.1,2528.0,0.47796561]
[1747704462060,5.28436,2528.1,2528.0,0.47796561]
[1747704462356,8.02436,2528.1,2528.0,0.47796561]
[1747704463260,2.74,2528.1,2528.0,1.26885561]
[1747704463451,2.74,2528.1,2528.0,2.60635561]
[1747704464260,1.2857,2528.4,2528.2,0.79082]
[1747704464456,1.2857,2528.4,2528.3,0.79079]
[1747704464758,0.08486477,2528.7,2528.5,0.79072]
[1747704465162,1.43006477,2528.7,2528.5,0.79072]
[1747704465360,0.08486477,2528.7,2528.5,1.3437]
[1747704465665,1.43006477,2528.7,2528.5,1.3437]
[1747704466657,1.43006477,2528.7,2528.5,2.13441]
[1747704468762,1.43006477,2528.7,2528.6,0.7907]
[1747704468957,0.08486477,2528.7,2528.6,3.9985]
[1747704469165,0.08486477,2528.7,2528.6,4.7963]
[1747704469557,0.08486477,2528.7,2528.6,5.43364478]
[1747704469758,4.77e-06,2528.7,2528.6,19.03464478]
[1747704473671,4.77e-06,2528.7,2528.6,18.90158961]
[1747704474563,4.77e-06,2528.7,2528.6,13.90158961]
[1747704475569,4.77e-06,2528.7,2528.6,16.31658961]
[1747704477474,4.77e-06,2528.7,2528.6,17.27018823]
[1747704478072,4.77e-06,2528.7,2528.6,14.85518823]
[1747704480074,4.77e-06,2528.7,2528.6,19.85518823]
[1747704480866,4.77e-06,2528.7,2528.6,18.90158961]
[1747704481370,4.77e-06,2528.7,2528.6,21.31658961]
[1747704481877,4.77e-06,2528.7,2528.6,16.31658961]
[1747704482067,4.77e-06,2528.7,2528.6,16.28958961]
[1747704484268,4.77e-06,2528.7,2528.6,15.49178961]
[1747704484472,4.77e-06,2528.7,2528.6,16.27068961]
[1747704487377,4.77e-06,2528.7,2528.6,21.27068961]
[1747704487581,4.77e-06,2528.7,2528.6,21.90516119]
[1747704487770,4.77e-06,2528.7,2528.6,16.90516119]
[1747704488470,4.77e-06,2528.7,2528.6,8.33116119]
[1747704488773,4.77e-06,2528.7,2528.6,16.90416119]
[1747704489278,4.77e-06,2528.7,2528.6,8.33116119]
[1747704489477,4.77e-06,2528.7,2528.6,16.90416119]
[1747704491678,4.77e-06,2528.7,2528.6,17.22168234]
[1747704491978,4.77e-06,2528.7,2528.6,22.22168234]
[1747704492177,1.29492721,2529.2,2529.1,0.79054]
[1747704492378,3.2078,2530.0,2529.1,11.7808]
[1747704492579,2.0786,2529.7,2529.6,0.79039]
[1747704493079,2.0786,2529.7,2529.6,1.29467961]
[1747704495180,2.0786,2529.7,2529.6,0.50428961]
[1747704495385,7.86896,2529.7,2529.6,0.50428961]
[1747704495683,7.0786,2529.7,2529.6,0.50428961]
[1747704496086,9.8186,2529.7,2529.6,0.50428961]
[1747704496480,4.8186,2529.7,2529.6,0.50428961]
[1747704497085,4.8186,2529.7,2529.6,1.29467961]
[1747704497284,4.8186,2529.7,2529.6,0.50428961]
[1747704499084,4.8186,2529.7,2529.6,1.29467961]
[1747704500188,4.90346477,2529.7,2529.6,1.29467961]
[1747704501089,2.16346477,2529.7,2529.6,1.29467961]
[1747704501790,1.39366477,2529.7,2529.6,1.29467961]
[1747704501990,4.77e-06,2529.7,2529.6,2.62547961]
[1747704502186,0.00592721,2529.9,2529.6,9.25008961]
[1747704502490,0.00592721,2529.9,2529.8,3.99813]
[1747704502691,0.00592721,2529.9,2529.8,17.11363]
[1747704503092,0.00592721,2529.9,2529.8,19.85363]
[1747704504791,0.00592721,2529.9,2529.8,20.35791961]
[1747704505993,0.00592721,2529.9,2529.8,21.30968815]
[1747704507298,0.00592721,2529.9,2529.8,18.56968815]
[1747704508197,1.393,2530.5,2530.4,0.79014]
[1747704509193,4.133,2530.5,2530.4,0.79014]
[1747704509600,4.133,2530.5,2530.4,2.17814]
[1747704509997,4.133,2530.5,2530.4,0.79014]
[1747704510899,4.133,2530.5,2530.4,1.29288882]
[1747704514400,4.21786477,2530.5,2530.4,1.29288882]
[1747704514695,4.21786477,2530.5,2530.4,0.50274882]
[1747704514998,0.79015,2530.4,2530.2,3.688775]
[1747704515194,1.3027,2530.3,2530.2,3.688775]
[1747704515699,1.3027,2530.3,2530.2,0.480975]
[1747704516197,4.0427,2530.3,2530.2,0.480975]
[1747704516400,4.0427,2530.3,2530.2,0.00592721]
[1747704516995,4.83287,2530.3,2530.2,0.00592721]
[1747704517300,9.83287,2530.3,2530.2,0.00592721]
[1747704517706,4.0427,2530.3,2530.2,4.00392721]
[1747704518094,4.0427,2530.3,2530.2,0.79612721]
[1747704518401,1.3027,2530.3,2530.2,0.79612721]
[1747704518604,1.3027,2530.3,2530.2,0.00592721]
[1747704518805,6.3027,2530.3,2529.9,3.2078]
[1747704519103,3.2078,2530.1,2529.9,0.79028]
[1747704519295,1.2845,2530.0,2529.9,0.79028]
[1747704520099,1.2845,2530.0,2529.9,1.29373296]
[1747704520398,4.0245,2530.0,2529.9,0.50345296]
[1747704520601,4.0245,2530.0,2529.9,1.29374296]
[1747704523004,4.0245,2530.0,2529.9,2.60644296]
[1747704523205,1.2845,2530.0,2529.9,2.60644296]
[1747704524700,1.2845,2530.0,2529.9,1.29374296]
[1747704525207,1.2845,2530.0,2529.9,2.58214296]
[1747704526905,1.2845,2530.0,2529.9,1.29374296]
[1747704527811,1.2845,2530.0,2529.9,2.58214296]
[1747704528005,1.2845,2530.0,2529.9,1.29374296]
[1747704528209,1.2845,2530.0,2529.9,1.92719696]
[1747704530605,1.36936477,2530.0,2529.9,1.92719696]
[1747704531214,1.36936477,2530.0,2529.9,3.30209696]
[1747704533921,3.99782,2530.8,2530.0,1.97566]
[1747704534226,2.1328,2530.3,2530.2,3.2078]
[1747704534417,2.1328,2530.3,2530.2,3.998]
[1747704535619,0.76772721,2530.7,2530.6,0.79008]
[1747704537026,0.76772721,2530.7,2530.6,1.29353296]
[1747704537229,3.50772721,2530.7,2530.6,1.29353296]
[1747704541028,3.50772721,2530.7,2530.6,0.50345296]
[1747704541620,4.81992721,2530.7,2530.6,0.50345296]
[1747704542321,4.81992721,2530.7,2530.6,1.29353296]
[1747704544733,4.90479198,2530.7,2530.6,1.29353296]
[1747704546332,5.69483198,2530.7,2530.6,0.50345296]
[1747704546530,4.90479198,2530.7,2530.6,0.50345296]
[1747704547028,5.69483198,2530.7,2530.6,0.50345296]
[1747704547434,10.69483198,2530.7,2530.6,0.50345296]
[1747704549736,0.79011,2530.5,2530.4,0.47624864]
[1747704549935,3.99791,2530.5,2530.4,0.47624864]
[1747704550131,6.73791,2530.5,2530.4,0.47624864]
[1747704550542,11.73791,2530.5,2530.4,0.47624864]
[1747704551034,0.79014,2530.4,2530.3,0.633454]
[1747704551240,2.81654,2530.4,2530.3,0.633454]
[1747704551735,0.79018,2530.3,2530.1,0.79023]
[1747704552037,1.315,2530.2,2530.1,0.79023]
[1747704553139,4.055,2530.2,2530.1,0.79023]
[1747704553339,4.055,2530.2,2530.1,1.29260253]
[1747704554035,4.055,2530.2,2530.1,0.50237253]
[1747704555042,4.055,2530.2,2530.1,0.97927487]
[1747704556945,4.055,2530.2,2530.1,1.76950487]
[1747704557745,4.055,2530.2,2530.1,0.97927487]
[1747704559248,4.055,2530.2,2530.1,1.76950487]
[1747704560948,4.13986477,2530.2,2530.1,1.76950487]
[1747704561144,2.82486477,2530.2,2530.1,4.97730487]
[1747704561352,2.82486477,2530.2,2530.1,15.58400487]
[1747704561542,0.03830838,2530.2,2530.1,20.58400487]
[1747704564347,0.03830838,2530.2,2530.1,15.58400487]
[1747704564549,0.03830838,2530.2,2530.1,20.58400487]
[1747704564749,0.03830838,2530.2,2530.1,20.10710253]
[1747704565450,0.03830838,2530.2,2530.1,15.10710253]
[1747704566248,0.03830838,2530.2,2530.1,6.59010253]
[1747704566450,0.03830838,2530.2,2530.1,0.50237253]
[1747704566952,1.98770838,2530.2,2530.1,0.50237253]
[1747704567143,4.72770838,2530.2,2530.1,0.50237253]
[1747704569552,4.72770838,2530.2,2530.1,1.29260253]
[1747704570258,0.79033,2529.8,2529.7,0.96042963]
[1747704570444,3.99813,2529.8,2529.7,0.96042963]
[1747704570651,3.2078,2529.8,2529.7,0.96042963]
[1747704571052,4.5718,2529.8,2529.7,0.96042963]
[1747704571249,7.3118,2529.8,2529.7,1.75078963]
[1747704571452,5.9478,2529.8,2529.7,1.75078963]
[1747704572053,5.9478,2529.8,2529.7,0.79628721]
[1747704572261,3.2078,2529.8,2529.7,0.79628721]
[1747704572461,1.364,2530.0,2529.9,0.79029]
[1747704572668,0.71410838,2530.2,2529.8,10.4067]
[1747704572862,0.71410838,2530.2,2530.0,0.79025]
[1747704573165,3.45410838,2530.2,2529.9,0.6916]
[1747704573363,4.5718,2530.1,2529.9,0.6916]
[1747704573561,5.36205,2530.1,2529.9,0.6916]
[1747704573761,6.00155,2530.1,2529.9,0.6916]
[1747704574058,5.2113,2530.1,2529.7,0.00592721]
[1747704574263,3.2078,2529.8,2529.7,0.00592721]
[1747704574659,3.2078,2529.8,2529.7,1.27272721]
[1747704575057,3.2078,2529.8,2529.7,2.06308721]
[1747704575261,3.2078,2529.8,2529.7,0.00592721]
[1747704575764,4.5289,2529.8,2529.7,1.27272721]
[1747704576157,7.2689,2529.8,2529.7,1.27272721]
[1747704576667,4.0611,2529.8,2529.7,2.06308721]
[1747704576965,2.74,2529.8,2529.7,2.06308721]
[1747704577167,1.2971,2530.0,2529.8,0.79031]
[1747704577368,1.2971,2530.0,2529.8,2.11101]
[1747704578068,4.0371,2530.0,2529.8,2.11101]
[1747704578871,4.0371,2530.0,2529.8,1.3207]
[1747704579169,4.0371,2530.0,2529.7,0.00592721]
[1747704579469,4.0371,2530.0,2529.8,0.79032]
[1747704579861,4.0371,2530.0,2529.9,0.79029]
[1747704580367,4.0371,2530.0,2529.8,0.79031]
[1747704581468,4.0371,2530.0,2529.9,0.79029]
[1747704581963,2.74,2530.0,2529.9,0.79029]
[1747704582265,0.08486477,2530.1,2530.0,0.79026]
[1747704582469,0.08486477,2530.1,2530.0,8.55976]
[1747704583571,0.08486477,2530.1,2530.0,11.76756]
[1747704584071,0.08486477,2530.1,2530.0,12.26544196]
[1747704584371,0.08486477,2530.1,2530.0,15.00544196]
[1747704584765,0.08486477,2530.1,2530.0,7.23594196]
[1747704585069,0.08486477,2530.1,2530.0,4.02814196]
[1747704585264,0.08486477,2530.1,2530.0,1.28814196]
[1747704587266,0.08486477,2530.1,2530.0,2.58514196]
[1747704587972,0.08486477,2530.1,2530.0,5.79294196]
[1747704588170,0.08486477,2530.1,2530.0,2.58514196]
[1747704588570,0.00592721,2530.7,2530.1,1.97558]
[1747704588769,0.00592721,2530.7,2530.6,0.79008]
[1747704589375,1.27842721,2530.7,2530.2,10.4319]
[1747704589673,1.27842721,2530.7,2530.5,0.79008]
[1747704590273,4.01842721,2530.7,2530.5,0.79008]
[1747704590475,4.01842721,2530.7,2530.6,0.79008]
[1747704590871,4.01842721,2530.7,2530.3,1.85188196]
[1747704591076,4.01842721,2530.7,2530.6,0.79008]
[1747704591268,1.27842721,2530.7,2530.6,0.79008]
[1747704591775,1.27842721,2530.7,2530.6,1.28796196]
[1747704592273,4.01842721,2530.7,2530.6,1.28796196]
[1747704593268,1.27842721,2530.7,2530.6,1.28796196]
[1747704596075,0.00592721,2530.7,2530.6,1.28796196]
[1747704597382,0.00592721,2530.7,2530.6,9.77696196]
[1747704597582,1.28512721,2530.7,2530.6,9.77696196]
[1747704598182,4.02512721,2530.7,2530.6,9.77696196]
[1747704600682,4.02512721,2530.7,2530.6,1.28796196]
[1747704602087,1.28512721,2530.7,2530.6,1.28796196]
[1747704604492,1.36999198,2530.7,2530.6,1.28796196]
[1747704605284,1.36999198,2530.7,2530.6,2.68076196]
[1747704605683,1.98e-06,2530.7,2530.6,10.88856196]
[1747704606381,1.98e-06,2530.7,2530.6,0.49788196]
[1747704606581,3.45374198,2530.7,2530.6,0.49788196]
[1747704606983,0.79008,2530.6,2530.5,2.74]
[1747704607180,0.79011,2530.5,2530.4,0.63397257]
[1747704607380,3.99791,2530.5,2530.4,0.63397257]
[1747704607582,10.29501,2530.5,2530.4,0.63397257]
[1747704608284,13.03501,2530.5,2530.4,0.63397257]
[1747704609187,12.2449,2530.5,2530.3,0.79015]
[1747704609488,1.2971,2530.4,2530.3,0.79015]
[1747704610289,4.82724,2530.4,2530.1,0.79022]
[1747704610585,3.2078,2530.2,2530.1,0.79022]
[1747704610893,2.0249,2530.3,2530.2,0.7902]
[1747704611188,2.74,2530.3,2530.2,0.7902]
[1747704611390,1.92528,2530.3,2530.2,0.7902]
[1747704611583,0.11609,2530.3,2530.2,3.998]
[1747704611790,3.8747,2531.1,2530.8,0.79001]
[1747704611981,3.2078,2531.1,2530.8,9.25301]
[1747704612689,3.8542,2531.4,2530.8,9.25301]
[1747704612890,3.8542,2531.4,2530.8,10.87390444]
[1747704613292,7.21e-06,2530.9,2530.8,15.87390444]
[1747704614185,7.21e-06,2530.9,2530.8,18.61390444]
[1747704614387,3.8542,2531.9,2531.7,0.78973]
[1747704614388,1.3598,2531.8,2531.7,0.78973]
[1747704615290,1.3598,2531.8,2531.6,0.78974]
[1747704615491,1.3598,2531.8,2531.7,0.78973]
[1747704615788,1.3598,2531.8,2531.5,0.79571721]
[1747704615992,1.3598,2531.8,2531.6,0.78976]
[1747704616491,1.3598,2531.8,2531.5,0.79568721]
[1747704617387,4.0998,2531.8,2531.5,0.00592721]
[1747704617585,4.0998,2531.8,2531.5,0.79572721]
[1747704617888,4.0998,2531.8,2531.5,0.00592721]
[1747704618090,4.0998,2531.8,2531.7,0.78973]
[1747704618395,1.3598,2531.8,2531.7,0.78973]
[1747704619089,1.3598,2531.8,2531.7,1.28497609]
[1747704619694,1.44466477,2531.8,2531.7,1.28497609]
[1747704620493,0.08486477,2531.8,2531.7,1.28497609]
[1747704620683,0.08486477,2531.8,2531.7,0.78973]
[1747704620885,4.77e-06,2531.8,2531.7,8.99753]
[1747704621187,4.77e-06,2531.8,2531.7,9.66233]
[1747704621691,4.5528,2532.6,2532.5,0.78948]
[1747704622288,4.5528,2532.6,2532.2,1.3446]
[1747704622492,3.2078,2532.3,2531.7,3.8726]
[1747704622689,3.2078,2532.3,2531.6,0.39768709]
[1747704622690,0.78966,2532.0,2531.5,0.79570721]
[1747704622888,3.2078,2531.7,2531.5,9.25570721]
[1747704623083,0.08486477,2531.8,2531.7,0.78973]
[1747704625394,0.08486477,2531.8,2531.5,8.46492721]
[1747704625894,0.08486477,2531.8,2531.7,0.78973]
[1747704627388,0.08486477,2531.8,2531.6,0.78975]
[1747704627594,0.08486477,2531.8,2531.5,9.25470721]
[1747704627795,0.08486477,2531.8,2531.6,0.78976]
[1747704628394,0.08486477,2531.8,2531.7,0.78973]
[1747704628587,0.08486477,2531.8,2531.6,0.78975]
[1747704628788,0.08486477,2531.8,2531.7,0.78973]
[1747704630500,0.08486477,2531.8,2531.6,0.78975]
[1747704630800,0.08486477,2531.8,2531.7,0.78973]
[1747704631100,2.82486477,2531.8,2531.7,0.78973]
[1747704631305,2.82486477,2531.8,2531.5,0.00592721]
[1747704631486,3.2078,2531.7,2531.5,0.00592721]
[1747704631689,3.2078,2531.7,2531.6,0.78976]
[1747704632101,5.9478,2531.7,2531.6,0.78976]
[1747704634705,5.9478,2531.7,2531.5,0.79570721]
[1747704635000,6.73755,2531.7,2531.5,0.00592721]
[1747704635298,1.3144,2531.6,2531.5,0.79572721]
[1747704636197,9.0544,2531.6,2530.9,0.47334558]
[1747704636401,3.99775,2531.0,2530.9,0.47334558]
[1747704637199,5.9478,2531.0,2530.9,1.26332558]
[1747704637597,7.9572,2531.0,2530.9,1.26332558]
[1747704637800,2.74,2531.0,2530.9,1.26332558]
[1747704638001,2.74,2531.0,2530.9,6.45982558]
[1747704638201,1.3597,2531.4,2531.3,0.78986]
[1747704638604,1.3597,2531.4,2531.2,0.78987]
[1747704639192,1.3597,2531.4,2530.9,4.31024558]
[1747704639193,0.78993,2531.1,2530.9,1.10244558]
[1747704639405,1.3597,2531.0,2530.9,1.89242558]
[1747704639904,1.3597,2531.0,2530.9,1.41908]
[1747704640099,1.3597,2531.0,2530.9,2.77868]
[1747704641008,2.74,2531.1,2531.0,0.78995]
[1747704641301,1.3334,2531.4,2531.1,0.78992]
[1747704641708,1.3334,2531.4,2531.2,0.78987]
[1747704642205,4.0734,2531.4,2531.1,1.45171]
[1747704642404,4.86323,2531.4,2531.2,1.3878]
[1747704642711,4.0734,2531.4,2531.3,0.49575033]
[1747704643109,4.0734,2531.4,2531.3,1.28561033]
[1747704643604,2.74,2531.4,2531.3,1.28561033]
[1747704644111,3.2078,2531.5,2531.3,1.28561033]
[1747704644302,3.2078,2531.5,2531.4,2.18213]
[1747704644503,0.08486477,2531.7,2531.6,0.78976]
[1747704645209,0.08486477,2531.7,2531.6,2.82016]
[1747704645401,0.07893756,2531.7,2531.6,19.46396]
[1747704645602,0.07893756,2531.7,2531.6,19.95971033]
[1747704645806,0.07893756,2531.7,2531.6,14.95971033]
[1747704648209,0.07893756,2531.7,2531.6,14.95871033]
[1747704648904,0.07893756,2531.7,2531.6,15.43205591]
[1747704649112,0.07893756,2531.7,2531.6,20.43205591]
[1747704649513,0.07893756,2531.7,2531.6,15.43205591]
[1747704649711,0.07893756,2531.7,2531.6,20.43205591]
[1747704650009,7.56e-06,2531.7,2531.6,20.43205591]
[1747704650213,3.2078,2532.9,2532.2,0.78958]
[1747704650415,3.90091114,2533.0,2532.4,5.18152]
[1747704650611,3.90091114,2533.0,2532.9,0.78936]
[1747704651110,3.04717114,2533.0,2532.9,9.22436]
[1747704651315,2.14277114,2533.0,2532.9,14.22436]
[1747704651520,2.14277114,2533.0,2532.9,9.22436]
[1747704651817,2.14277114,2533.0,2532.9,9.87836]
[1747704652618,2.14277114,2533.0,2532.9,10.26886535]
[1747704652920,0.00592721,2533.2,2533.1,0.7893]
[1747704653317,2.74592721,2533.2,2533.1,3.9971]
[1747704653618,2.74592721,2533.2,2533.1,4.6461]
[1747704654218,1.86404,2533.5,2533.4,0.7892]
[1747704654422,3e-06,2533.5,2533.4,12.43]
[1747704654613,3e-06,2533.5,2533.4,17.92575033]
[1747704654813,3e-06,2533.5,2533.4,8.92875033]
[1747704655209,3e-06,2533.5,2533.4,9.71695033]
[1747704656417,3e-06,2533.5,2533.4,0.49575033]
[1747704656622,3e-06,2533.5,2533.2,8.432]
[1747704656921,2.783583,2533.5,2533.2,8.432]
[1747704657125,1.994403,2533.5,2533.2,8.432]
[1747704657423,2.783583,2533.5,2533.2,8.432]
[1747704657723,2.783583,2533.5,2533.0,2.04962]
[1747704657924,1.994403,2533.5,2532.8,0.47334558]
[1747704658417,3.2078,2533.0,2532.8,0.47334558]
[1747704658624,1.3576,2532.9,2532.8,1.26273558]
[1747704658812,3.2078,2533.3,2532.8,0.47334558]
[1747704659119,3.2078,2533.3,2532.9,0.78934]
[1747704659422,1.2732,2533.2,2533.1,0.7893]
[1747704659613,1.2732,2533.2,2532.9,2.12316]
[1747704660124,4.0132,2533.2,2532.9,2.12316]
[1747704660321,4.0132,2533.2,2532.7,0.00592721]
[1747704660514,0.78939,2532.8,2532.7,0.00592721]
[1747704661020,5.78939,2532.8,2532.7,0.00592721]
[1747704661218,0.78948,2532.5,2532.4,0.49657355]
[1747704661422,3.99728,2532.5,2532.4,0.49657355]
[1747704661723,1.2732,2532.7,2532.4,1.28607355]
[1747704661916,2.06262,2532.7,2532.4,1.28607355]
[1747704662110,3.99728,2532.5,2532.4,0.49657355]
[1747704662322,3.99728,2532.5,2532.0,0.63392407]
[1747704662323,0.78951,2532.4,2532.3,0.00592721]
[1747704662516,1.3116,2532.4,2532.3,0.00592721]
[1747704662725,6.3116,2532.4,2532.3,0.00592721]
[1747704662920,1.3116,2532.4,2532.3,0.79547721]
[1747704663226,4.0516,2532.4,2532.3,0.00592721]
[1747704663418,4.0516,2532.4,2532.3,0.79547721]
[1747704663611,4.0516,2532.4,2532.3,0.00592721]
[1747704664030,4.84111,2532.4,2532.3,0.00592721]
[1747704664230,9.84111,2532.4,2532.3,0.00592721]
[1747704664525,18.33697477,2532.4,2532.3,0.00592721]
[1747704665627,0.78973,2531.8,2531.4,3.99762]
[1747704665827,1.9721,2531.7,2531.6,0.78976]
[1747704666030,1.9721,2531.7,2531.4,3.2078]
[1747704666217,4.7121,2531.7,2531.4,3.2078]
[1747704666727,5.50183,2531.7,2531.4,3.99761]
[1747704666924,5.50183,2531.7,2531.4,3.2078]
[1747704667226,0.78977,2531.6,2531.4,3.2078]
[1747704667428,1.2981,2531.5,2531.3,0.47927279]
[1747704667628,1.2981,2531.5,2531.3,1.26911279]
[1747704667921,1.2981,2531.5,2531.3,1.26913279]
[1747704668225,4.82791,2531.5,2531.3,0.47927279]
[1747704668425,4.0381,2531.5,2531.3,0.00592721]
[1747704669026,4.0381,2531.5,2531.3,0.79576721]
[1747704669325,4.0381,2531.5,2531.3,0.00592721]
[1747704669722,4.0381,2531.5,2531.3,0.79576721]
[1747704670121,4.0381,2531.5,2531.3,0.00592721]
[1747704670322,0.78983,2531.4,2531.3,0.00592721]
[1747704670521,2.10993,2531.4,2531.3,0.00592721]
[1747704671232,4.84993,2531.4,2531.3,0.00592721]
[1747704672737,0.79001,2530.9,2530.6,0.79006]
[1747704672926,1.3038,2530.8,2530.6,0.79006]
[1747704673126,1.3038,2530.8,2530.3,3.59659296]
[1747704673127,0.79008,2530.6,2530.3,0.79015]
[1747704673327,1.3038,2530.5,2530.3,0.79015]
[1747704673524,1.3038,2530.5,2530.2,1.81054558]
[1747704673730,2.09393,2530.5,2530.2,1.26354558]
[1747704674035,3.99797,2530.3,2530.2,0.47334558]
[1747704674422,17.41197,2530.3,2530.2,0.47334558]
[1747704675123,20.15197,2530.3,2530.2,0.47334558]
[1747704675327,0.7902,2530.2,2530.1,0.00592721]
[1747704675631,9.7405,2530.2,2530.1,0.00592721]
[1747704676026,1.3265,2530.2,2530.1,0.79615721]
[1747704676223,2.74,2530.2,2530.1,0.79615721]
[1747704676434,0.94372,2530.2,2530.1,5.79615721]
[1747704676621,0.06786,2530.2,2530.1,14.21215721]
[1747704676828,1e-05,2530.2,2530.1,14.21215721]
[1747704677029,1e-05,2530.2,2530.1,17.41995721]
[1747704677230,0.00592721,2530.6,2530.5,0.79011]
[1747704677827,0.00592721,2530.6,2530.5,2.11081]
[1747704678456,0.00592721,2530.6,2530.5,2.78541]
[1747704679531,0.00592721,2530.6,2530.5,1.9953]
[1747704679737,0.00592721,2530.6,2530.5,2.78541]
[1747704680237,0.00592721,2530.6,2530.1,3.21372721]
[1747704680534,1.40639198,2530.6,2530.2,1.9842]
[1747704680738,0.79019,2530.3,2530.1,0.00592721]
[1747704681039,2.1058,2530.2,2530.1,0.00592721]
[1747704681238,2.7574,2530.2,2530.1,0.00592721]
[1747704681440,2.74,2530.3,2530.2,0.7902]
[1747704681636,2.74,2530.3,2530.2,2.0822]
[1747704681942,2.74,2530.3,2530.2,2.7802]
[1747704682130,1.40639198,2530.6,2530.2,1.292]
[1747704682332,3.99795,2530.4,2530.1,0.00592721]
[1747704682539,1.3156,2530.3,2530.1,0.00592721]
[1747704682739,3.2078,2530.4,2530.3,0.79017]
[1747704682937,0.09079198,2530.6,2530.5,0.79011]
[1747704683238,0.09079198,2530.6,2530.2,1.292]
[1747704683239,0.09079198,2530.6,2530.3,9.90616]
[1747704683439,3.29859198,2530.6,2530.4,0.79014]
[1747704683640,1.2777,2530.5,2530.1,0.79614721]
[1747704683836,1.2777,2530.5,2530.1,1.40052721]
[1747704684342,0.09079198,2530.6,2530.5,0.79011]
[1747704686031,0.09079198,2530.6,2530.5,2.85141]
[1747704686442,0.09079198,2530.6,2530.5,7.85141]
[1747704686640,0.00462169,2532.4,2531.1,0.78989]
[1747704686641,3.2078,2531.2,2531.1,0.78989]
[1747704686946,3.2078,2531.2,2530.7,1.375]
[1747704687242,1.3513,2531.1,2530.8,0.78998]
[1747704687443,1.3513,2531.1,2530.9,0.78998]
[1747704687742,1.3513,2531.1,2530.8,0.79]
[1747704688545,1.3513,2531.1,2530.7,1.38092721]
[1747704688849,0.78995,2531.0,2530.7,0.00592721]
[1747704689038,0.79001,2530.8,2530.7,0.00592721]
[1747704689342,3.53001,2530.8,2530.7,0.00592721]
[1747704689645,18.22911,2530.8,2530.7,0.00592721]
[1747704690647,13.22911,2530.8,2530.7,0.00592721]
[1747704691347,18.22911,2530.8,2530.7,0.00592721]
[1747704693541,13.22911,2530.8,2530.7,0.00592721]
[1747704694048,0.79022,2530.2,2529.9,1.43008]
[1747704694240,3.99808,2530.0,2529.7,0.6967]
[1747704694442,1.339,2529.9,2529.7,2.0358]
[1747704694641,1.339,2529.9,2529.8,0.79033]
[1747704694939,2.12929,2529.9,2529.8,1.3391]
[1747704695145,0.79035,2529.8,2529.6,0.63985128]
[1747704695447,1.339,2529.7,2529.6,0.63985128]
[1747704695646,2.12936,2529.7,2529.6,0.63985128]
[1747704696145,4.86936,2529.7,2529.6,0.00592721]
[1747704696348,4.079,2529.7,2529.6,0.00592721]
[1747704697239,2.74,2529.7,2529.6,0.79631721]
[1747704697442,2.74,2529.7,2529.6,14.25531721]
[1747704697849,1.56603558,2529.7,2529.6,14.75290104]
[1747704698048,3.2078,2530.8,2530.0,1.97559]
[1747704698247,3.2078,2530.8,2530.7,0.79004]
[1747704698746,2.7341,2531.2,2531.1,0.78992]
[1747704698747,5.152,2531.2,2531.1,0.78992]
[1747704698950,3.2078,2531.2,2531.1,0.78992]
[1747704699148,3.2078,2531.2,2530.9,0.79590721]
[1747704699343,3.9977,2531.2,2530.9,0.00592721]
[1747704699545,1.3657,2531.1,2530.9,0.00592721]
[1747704699745,1.3657,2531.1,2530.9,0.79590721]
[1747704700155,1.3657,2531.1,2530.9,0.00592721]
[1747704701556,1.3657,2531.1,2530.9,0.79590721]
[1747704701746,0.00592721,2531.4,2530.9,0.79590721]
[1747704701747,0.00592721,2531.4,2531.0,1.3917]
[1747704701946,0.00592721,2531.4,2531.3,0.78986]
[1747704702653,0.00592721,2531.4,2531.3,17.45566]
[1747704702854,7.21e-06,2531.4,2531.3,17.45566]
[1747704703259,7.21e-06,2531.4,2531.3,20.83136]
[1747704703465,7.21e-06,2531.4,2531.3,21.96210287]
[1747704703756,7.21e-06,2531.4,2531.3,23.35380287]
[1747704704952,7.21e-06,2531.4,2531.3,23.35280287]
[1747704705257,7.21e-06,2531.4,2531.3,20.61280287]
[1747704706260,7.21e-06,2531.4,2531.3,23.35280287]
[1747704706558,7.21e-06,2531.4,2531.3,6.68800287]
[1747704706761,7.21e-06,2531.4,2531.3,3.87074287]
[1747704706959,2.04843721,2531.4,2531.3,3.87074287]
[1747704707158,4.68200721,2531.4,2531.3,0.4968188]
[1747704707361,4.68200721,2531.4,2531.3,1.2866788]
[1747704708457,1.94200721,2531.4,2531.3,1.2866788]
[1747704708654,1.25860721,2531.4,2531.3,1.2866788]
[1747704708859,7.21e-06,2531.4,2531.3,0.78986]
[1747704709061,7.21e-06,2531.4,2531.3,10.38816]
[1747704709266,7.21e-06,2531.4,2531.3,13.12816]
[1747704709956,0.08487198,2531.4,2531.3,13.12816]
[1747704710167,1.98e-06,2531.4,2531.3,13.12816]
[1747704711662,1.98e-06,2531.4,2531.3,13.62249763]
[1747704712364,9.19e-06,2531.6,2531.5,0.7898]
[1747704714263,9.19e-06,2531.6,2531.5,1.28413763]
[1747704715973,9.19e-06,2531.6,2531.5,1.68047752]
[1747704716166,9.19e-06,2531.6,2531.5,1.28413763]
[1747704716865,9.19e-06,2531.6,2531.5,5.7898]
[1747704717167,9.19e-06,2531.6,2531.5,8.5298]
[1747704717466,9.19e-06,2531.6,2531.5,9.8718]